Workbook

Sheet Suppl Figure 5a
A1: locomotor activity
A2: total locomotor activity (beam crosses 1 - 2 hrs)
A4: mouse | B4: Veh | C4: TPA023B i.p.
A5: 1 | B5: 746 | C5: 972
A6: 2 | B6: 688 | C6: 1249
A7: 3 | B7: 1131 | C7: 1020
A8: 4 | B8: 583 | C8: 294
A9: 5 | B9: 278 | C9: 1528
A10: 6 | B10: 495 | C10: 2023
A12: mean | B12: =AVERAGE(B5:B10) -> 653.5 | C12: =AVERAGE(C5:C10) -> 1181
A13: SD | B13: =STDEV(B5:B10) -> 285.9529682 | C13: =STDEV(C5:C10) -> 581.4409686
A14: n | B14: =COUNT(B5:B10) -> 6 | C14: =COUNT(C5:C10) -> 6
A15: SEM | B15: =B13/SQRT(B14) -> 116.7398104 | C15: =C13/SQRT(C14) -> 237.3722814
A17: ttest | C17: =TTEST(B5:B10,C5:C10,2,2) -> 0.07410845827

Sheet 5b
A1: horizontal wire
A2: normalized success rate (%)
A3: mouse | B3: Veh | C3: TPA023B i.p.
A4: 1 | B4: 100 | C4: 100
A5: 2 | B5: 80 | C5: 90
A6: 3 | B6: 100 | C6: 60
A7: 4 | B7: 90 | C7: 80
A8: 5 | B8: 90 | C8: 90
A10: mean | B10: =AVERAGE(B4:B8) -> 92 | C10: =AVERAGE(C4:C8) -> 84
A11: SD | B11: =STDEV(B4:B8) -> 8.366600265 | C11: =STDEV(C4:C8) -> 15.16575089
A12: n | B12: =COUNT(B3:B8) -> 5 | C12: =COUNT(C3:C8) -> 5
A13: SEM | B13: =B11/SQRT(B12) -> 3.741657387 | C13: =C11/SQRT(C12) -> 6.782329983
A15: ttest | C15: =TTEST(B4:B8,C4:C8,2,2) -> 0.3319086386

Sheet 5c
A1: time spent on rotarod (s)
A3: mouse | B3: Veh | C3: TPA023B i.p.
A4: 1 | B4: 84.2 | C4: 133.5
A5: 2 | B5: 87.6 | C5: 128.7
A6: 3 | B6: 138.9 | C6: 150.1
A7: 4 | B7: 140.7 | C7: 127.9
A8: 5 | B8: 105.8 | C8: 138.4
A10: mean | B10: =AVERAGE(B4:B8) -> 111.44 | C10: =AVERAGE(C4:C8) -> 135.72
A11: SD | B11: =STDEV(B4:B8) -> 27.16786705 | C11: =STDEV(C4:C8) -> 9.073698254
A12: n | B12: =COUNT(B3:B8) -> 5 | C12: =COUNT(C3:C8) -> 5
A13: SEM | B13: =B11/SQRT(B12) -> 12.14983951 | C13: =C11/SQRT(C12) -> 4.057881221
A15: ttest | C15: =TTEST(B4:B8,C4:C8,2,2) -> 0.09462742153
